[Event "XIII Mediterranean Championship 2023"]
[Site "Castell-Platja d Aro"]
[Date "2023.11.11"]
[Round "9.18"]
[White "Makka, Evanthia"]
[Black "Rodriguez Redondo, Adhara"]
[Result "1-0"]
[ECO "D05"]
[WhiteElo "2004"]
[BlackElo "2117"]
[Annotator "RC"]
[PlyCount "85"]
[EventDate "2023.10.26"]
[EventType "swiss"]
[EventCountry "ESP"]
[SourceTitle "playchess.com"]
[Source "ChessBase"]
[SourceQuality "1"]
[TimeControl "5400+30"]

1. d4 {[%emt 0:04:29]} Nf6 {[%emt 0:00:23]} 2. Nf3 {[%emt 0:00:06]} d5 {[%emt 0:00:07]} 3. e3 {[%emt 0:00:32]} e6 {[%emt 0:00:05]} 4. Bd3 {[%emt 0:00:04]} c5 {[%emt 0:00:06]} 5. dxc5 {[%emt 0:05:46]} Bxc5 {[%emt 0:00:32]} 6. a3 {[%emt 0:00:04]} O-O {[%emt 0:06:39]} 7. Nbd2 {[%emt 0:03:17]} a5 {[%emt 0:06:57]} 8. b3 {[%emt 0:01:45]} Nbd7 {[%emt 0:07:09]} 9. Bb2 {[%emt 0:04:03]} Qe7 {[%emt 0:04:56]} 10. O-O {[%emt 0:27:29]} e5 {[%emt 0:10:53]} 11. e4 {[%emt 0:00:43]} d4 {[%emt 0:05:05]} 12. a4 {[%emt 0:12:17]} Nb8 {[%emt 0:12:09]} 13. Nc4 {[%emt 0:03:09]} Nc6 {[%emt 0:00:56]} 14. Nfd2 {[%emt 0:01:19]} Bg4 {[%emt 0:10:23]} 15. Qe1 {[%emt 0:06:36]} Nh5 {[%emt 0:01:57]} 16. f3 {[%emt 0:04:00]} Be6 {[%emt 0:00:30]} 17. g3 {[%emt 0:03:42]} Qg5 {[%emt 0:02:01]} 18. Kh1 {[%emt 0:01:36]} Rfe8 {[%emt 0:07:25]} 19. Qf2 {[%emt 0:01:34]} Nf6 {[%emt 0:05:56]} 20. f4 {[%emt 0:04:13]} exf4 {[%emt 0:01:24]} 21. gxf4 {[%emt 0:00:45]} Qh6 {[%emt 0:01:03]} 22. Rae1 {[%emt 0:01:11]} Ng4 {[%emt 0:10:07]} 23. Qg3 {[%emt 0:02:01]} Bb4 {[%emt 0:01:29]} 24. Re2 {[%emt 0:02:31]} f5 {[%emt 0:02:23]} 25. exf5 {[%emt 0:07:55]} Bd5+ {[%emt 0:00:05]} 26. Kg1 {[%emt 0:00:11]} Nf6 {[%emt 0:02:07]} 27. Rfe1 {[%emt 0:00:51]} Rf8 {[%emt 0:00:25]} 28. Qg5 {[%emt 0:01:12]} Qh3 {[%emt 0:00:41]} 29. Qg3 {[%emt 0:00:06]} Qh6 {[%emt 0:00:12]} 30. Nb6 {[%emt 0:00:50]} Nh5 {[%emt 0:00:49]} 31. Qg5 {[%emt 0:00:08]} Nxf4 {[%emt 0:00:17]} 32. Qxh6 {[%emt 0:00:13]} gxh6 {[%emt 0:00:34]} 33. Nxd5 {[%emt 0:01:47]} Nxd5 {[%emt 0:00:08]} 34. Rf1 {[%emt 0:00:24]} Kh8 {[%emt 0:00:59]} 35. Bc4 {[%emt 0:00:34]} Nc3 {[%emt 0:00:34]} 36. Rg2 {[%emt 0:00:16]} Ne5 {[%emt 0:00:29]} 37. Be6 {[%emt 0:00:17]} h5 {[%emt 0:00:31]} 38. Nf3 {[%emt 0:00:19]} Nxf3+ {[%emt 0:00:29]} 39. Rxf3 {[%emt 0:00:06]} Rad8 {[%emt 0:00:28]} 40. f6 {[%emt 0:01:03]} Rd6 {[%emt 0:00:34]} 41. Bc4 {[%emt 0:00:32]} Nd1 {[%emt 0:00:30]} 42. f7 {[%emt 0:00:26]} Rdd8 {[%emt 0:00:29]} 43. Bxd4+ {[%emt 0:00:16]} 1-0

[Event "XIII Mediterranean Championship 2023"]
[Site "Castell-Platja d Aro"]
[Date "2023.11.11"]
[Round "9.20"]
[White "Pla Almenar, Nel"]
[Black "Lunin Bohomolets, Iliia"]
[Result "1-0"]
[ECO "B42"]
[WhiteElo "2070"]
[BlackElo "1850"]
[Annotator "RC"]
[PlyCount "75"]
[EventDate "2023.10.26"]
[EventType "swiss"]
[EventCountry "ESP"]
[SourceTitle "playchess.com"]
[Source "ChessBase"]
[SourceQuality "1"]
[TimeControl "5400+30"]

1. e4 {[%emt 0:00:05]} c5 {[%emt 0:00:28]} 2. Nf3 {[%emt 0:00:07]} e6 {[%emt 0:00:14]} 3. d4 {[%emt 0:00:05]} cxd4 {[%emt 0:00:15]} 4. Nxd4 {[%emt 0:00:08]} Qb6 {[%emt 0:00:46]} 5. Nb3 {[%emt 0:01:44]} a6 {[%emt 0:01:17]} 6. Bd3 {[%emt 0:00:48]} Qc7 {[%emt 0:00:37]} 7. Qe2 {[%emt 0:00:59]} d6 {[%emt 0:00:33]} 8. Nc3 {[%emt 0:00:45]} Nf6 {[%emt 0:00:09]} 9. f4 {[%emt 0:00:14]} Nbd7 {[%emt 0:00:35]} 10. g4 {[%emt 0:00:14]} h6 {[%emt 0:05:56]} 11. Be3 {[%emt 0:01:05]} b5 {[%emt 0:01:06]} 12. a3 {[%emt 0:00:18]} Bb7 {[%emt 0:00:55]} 13. O-O-O {[%emt 0:00:41]} d5 {[%emt 0:02:11]} 14. e5 {[%emt 0:11:04]} Ng8 {[%emt 0:12:06]} 15. Bd4 {[%emt 0:01:50]} Bc5 {[%emt 0:07:34]} 16. Nxc5 {[%emt 0:06:33]} Nxc5 {[%emt 0:00:04]} 17. Bxb5+ {[%emt 0:02:16]} axb5 {[%emt 0:00:52]} 18. Nxb5 {[%emt 0:00:15]} Qc6 {[%emt 0:02:00]} 19. Nd6+ {[%emt 0:00:34]} Kd7 {[%emt 0:10:16]} 20. Bxc5 {[%emt 0:01:13]} Ba6 {[%emt 0:00:36]} 21. Qe3 {[%emt 0:01:16]} Ne7 {[%emt 0:01:25]} 22. f5 {[%emt 0:03:42]} Rhb8 {[%emt 0:05:20]} 23. Rhe1 {[%emt 0:02:38]} Qa4 {[%emt 0:02:53]} 24. Rd4 {[%emt 0:08:41]} Qa5 {[%emt 0:02:20]} 25. Bb4 {[%emt 0:02:53]} Qb6 {[%emt 0:01:01]} 26. Nxf7 {[%emt 0:04:01]} Nc6 {[%emt 0:02:07]} 27. fxe6+ {[%emt 0:01:22]} Kxe6 {[%emt 0:00:29]} 28. Ng5+ {[%emt 0:16:26]} hxg5 {[%emt 0:01:54]} 29. Qxg5 {[%emt 0:00:17]} Nxb4 {[%emt 0:07:34]} 30. Qg6+ {[%emt 0:00:54]} Kd7 {[%emt 0:02:17]} 31. e6+ {[%emt 0:00:38]} Kc8 {[%emt 0:01:13]} 32. Rxb4 {[%emt 0:00:44]} Qd6 {[%emt 0:04:11]} 33. Qe8+ {[%emt 0:01:48]} Kc7 {[%emt 0:01:04]} 34. Qf7+ {[%emt 0:00:31]} Kc6 {[%emt 0:00:34]} 35. Rxb8 {[%emt 0:00:29]} Qxb8 {[%emt 0:01:24]} 36. Qd7+ {[%emt 0:00:55]} Kc5 {[%emt 0:00:26]} 37. b4+ {[%emt 0:00:38]} Kc4 {[%emt 0:03:02]} 38. Qc6+ {[%emt 0:01:47]} 1-0

[Event "XIII Mediterranean Championship 2023"]
[Site "Castell-Platja d Aro"]
[Date "2023.11.11"]
[Round "9.21"]
[White "Andreu Lopez, Santiago"]
[Black "De Lussac, Estephe"]
[Result "0-1"]
[ECO "A07"]
[WhiteElo "1834"]
[BlackElo "2013"]
[Annotator "RC"]
[PlyCount "90"]
[EventDate "2023.10.26"]
[EventType "swiss"]
[EventCountry "ESP"]
[SourceTitle "playchess.com"]
[Source "ChessBase"]
[SourceQuality "1"]
[TimeControl "5400+30"]

1. Nf3 {[%emt 1:31:00]} g6 {[%emt 1:31:00]} 2. g3 {[%emt 0:00:30]} Bg7 {[%emt 0:00:30]} 3. Bg2 {[%emt 0:00:30]} e5 {[%emt 0:00:30]} 4. d3 {[%emt 0:00:30]} d5 {[%emt 0:00:30]} 5. O-O {[%emt 0:00:30]} Ne7 {[%emt 0:00:30]} 6. c4 {[%emt 0:00:30]} c6 {[%emt 0:00:30]} 7. cxd5 {[%emt 0:00:30]} cxd5 {[%emt 0:00:30]} 8. Nc3 {[%emt 0:00:30]} Nbc6 {[%emt 0:00:30]} 9. Qb3 {[%emt 0:00:30]} O-O {[%emt 0:00:30]} 10. Nd2 {[%emt 0:00:30]} Nd4 {[%emt 0:00:30]} 11. Qd1 {[%emt 0:00:30]} Be6 {[%emt 0:00:30]} 12. e3 {[%emt 0:00:30]} Ndc6 {[%emt 0:00:30]} 13. Nb3 {[%emt 0:00:30]} b6 {[%emt 0:00:30]} 14. e4 {[%emt 0:00:30]} d4 {[%emt 0:00:30]} 15. Ne2 {[%emt 0:00:30]} Qd7 {[%emt 0:00:30]} 16. f4 {[%emt 0:00:30]} f6 {[%emt 0:00:30]} 17. Bd2 {[%emt 0:00:30]} Rac8 {[%emt 0:00:30]} 18. Rc1 {[%emt 0:00:30]} a5 {[%emt 0:00:30]} 19. Rf2 {[%emt 0:00:30]} h6 {[%emt 0:00:30]} 20. Kh1 {[%emt 0:00:30]} Nb8 {[%emt 0:00:30]} 21. Ng1 {[%emt 0:00:30]} Qa4 {[%emt 0:00:30]} 22. fxe5 {[%emt 0:00:30]} fxe5 {[%emt 0:00:30]} 23. Rxf8+ {[%emt 0:00:30]} Rxf8 {[%emt 0:00:30]} 24. Bh3 {[%emt 0:00:30]} Bxh3 {[%emt 0:00:30]} 25. Nxh3 {[%emt 0:00:30]} Qxa2 {[%emt 0:00:30]} 26. Rc7 {[%emt 0:00:30]} Nbc6 {[%emt 0:00:30]} 27. Qc2 {[%emt 0:00:30]} Qa4 {[%emt 0:00:30]} 28. Kg2 {[%emt 0:00:30]} Kh7 {[%emt 0:00:30]} 29. Nf2 {[%emt 0:00:30]} Qb5 {[%emt 0:00:30]} 30. Bc1 {[%emt 0:00:30]} Rc8 {[%emt 0:00:30]} 31. Rxc8 {[%emt 0:00:30]} Nxc8 {[%emt 0:00:30]} 32. Nd2 {[%emt 0:00:30]} Nd6 {[%emt 0:00:30]} 33. Nf3 {[%emt 0:00:30]} Nb4 {[%emt 0:00:30]} 34. Qc7 {[%emt 0:00:30]} Nxd3 {[%emt 0:00:30]} 35. Bxh6 {[%emt 0:00:30]} Ne8 {[%emt 0:00:30]} 36. Qe7 {[%emt 0:00:30]} Nxf2 {[%emt 0:00:30]} 37. Ng5+ {[%emt 0:00:30]} Kxh6 {[%emt 0:00:30]} 38. Nf7+ {[%emt 0:00:30]} Kh7 {[%emt 0:00:30]} 39. Ng5+ {[%emt 0:00:30]} Kh8 {[%emt 0:00:30]} 40. Kxf2 {[%emt 0:00:30]} Qc6 {[%emt 0:00:30]} 41. Ne6 {[%emt 0:00:30]} d3 {[%emt 0:00:30]} 42. Ke1 {[%emt 0:00:30]} Qxe4+ {[%emt 0:00:30]} 43. Kd2 {[%emt 0:00:30]} Qc6 {[%emt 0:00:30]} 44. Nd8 {[%emt 0:00:30]} Qc2+ {[%emt 0:00:30]} 45. Ke3 {[%emt 0:00:30]} Qe2# {[%emt 0:00:30]} 0-1

[Event "XIII Mediterranean Championship 2023"]
[Site "Castell-Platja d Aro"]
[Date "2023.11.11"]
[Round "9.22"]
[White "De Lomas Busquets, Alba"]
[Black "Clot Chico, Arnau"]
[Result "0-1"]
[ECO "A46"]
[WhiteElo "1873"]
[BlackElo "2008"]
[Annotator "NA RC"]
[PlyCount "50"]
[EventDate "2023.10.26"]
[EventType "swiss"]
[EventCountry "ESP"]
[SourceTitle "playchess.com"]
[Source "ChessBase"]
[SourceQuality "1"]
[TimeControl "5400+30"]

1. d4 {[%emt 0:00:01]} e6 {[%emt 0:10:51]} 2. Nf3 {[%emt 0:00:32]} Nf6 {[%emt 0:01:00]} 3. Bg5 {[%emt 0:00:09]} h6 {[%emt 0:01:12]} 4. Bxf6 {[%emt 0:00:56]} Qxf6 {[%emt 0:00:08]} 5. e4 {[%emt 0:00:05]} d6 {[%emt 0:01:28]} 6. Bd3 {[%emt 0:02:42]} g6 {[%emt 0:00:28]} 7. Nc3 {[%emt 0:03:05]} Bg7 {[%emt 0:04:38]} 8. h4 {[%emt 0:04:40]} Nc6 {[%emt 0:06:30]} 9. Ne2 {[%emt 0:05:20]} Bd7 {[%emt 0:00:42]} 10. Qd2 {[%emt 0:01:07]} Qe7 {[%emt 0:05:32]} 11. O-O-O {[%emt 0:04:39]} a5 {[%emt 1:03:31]} 12. Bb5 {[%emt 0:07:45]} a4 {[%emt 0:00:00]} 13. a3 {[%emt 0:03:09]} Na5 {[%emt 0:00:00]} 14. Qb4 {[%emt 0:04:39]} c6 {[%emt 0:00:00]} 15. Bxa4 {[%emt 0:02:18]} b5 {[%emt 0:00:00]} 16. Bb3 {[%emt 0:01:06]} c5 {[%emt 0:00:00]} 17. Qd2 {[%emt 0:56:47]} b4 {[%emt 0:03:00]} 18. axb4 {[%emt 0:00:00]} Nc4 {[%emt 0:00:30]} 19. Kb1 {[%emt 0:00:00]} Nxd2+ {[%emt 0:00:00]} 20. Rxd2 {[%emt 0:00:00]} cxb4 {[%emt 0:00:00]} 21. e5 {[%emt 0:02:00]} O-O {[%emt 0:01:30]} 22. d5 {[%emt 0:00:00]} exd5 {[%emt 0:00:00]} 23. Bxd5 {[%emt 0:00:00]} Ra5 {[%emt 0:00:00]} 24. exd6 {[%emt 0:00:00]} Qf6 {[%emt 0:00:00]} 25. c3 {[%emt 0:00:00]} Bf5+ {[%emt 0:02:00]} 0-1

[Event "XIII Mediterranean Championship 2023"]
[Site "Castell-Platja d Aro"]
[Date "2023.11.11"]
[Round "9.24"]
[White "Ballo Serrano, Jan"]
[Black "Vinolas Anglada, Laura"]
[Result "0-1"]
[ECO "C54"]
[WhiteElo "1512"]
[BlackElo "1884"]
[Annotator "NA RC"]
[PlyCount "66"]
[EventDate "2023.10.26"]
[EventType "swiss"]
[EventCountry "ESP"]
[SourceTitle "playchess.com"]
[Source "ChessBase"]
[SourceQuality "1"]
[TimeControl "5400+30"]

1. e4 {[%emt 0:03:20]} e5 {[%emt 0:00:03]} 2. Nf3 {[%emt 0:00:21]} Nc6 {[%emt 0:00:07]} 3. Bc4 {[%emt 0:00:09]} Bc5 {[%emt 0:00:35]} 4. d3 {[%emt 0:00:07]} Nf6 {[%emt 0:00:12]} 5. c3 {[%emt 0:00:34]} d6 {[%emt 0:00:13]} 6. h3 {[%emt 0:00:18]} h6 {[%emt 0:00:23]} 7. Bb3 {[%emt 0:01:42]} O-O {[%emt 0:01:18]} 8. O-O {[%emt 0:00:29]} a6 {[%emt 0:01:22]} 9. Re1 {[%emt 0:02:03]} Re8 {[%emt 0:01:11]} 10. Nbd2 {[%emt 0:00:46]} Ba7 {[%emt 0:01:16]} 11. Nf1 {[%emt 0:00:55]} Be6 {[%emt 0:00:28]} 12. Ng3 {[%emt 0:00:31]} d5 {[%emt 0:01:08]} 13. Qe2 {[%emt 0:00:17]} Qd7 {[%emt 0:02:06]} 14. Be3 {[%emt 0:07:54]} Bxe3 {[%emt 0:04:28]} 15. fxe3 {[%emt 0:03:30]} dxe4 {[%emt 0:06:36]} 16. dxe4 {[%emt 0:01:41]} Bxb3 {[%emt 0:00:33]} 17. axb3 {[%emt 0:00:09]} Qe6 {[%emt 0:00:24]} 18. Qc2 {[%emt 0:06:55]} Na7 {[%emt 0:04:33]} 19. Nh4 {[%emt 0:03:38]} Qc6 {[%emt 0:01:21]} 20. Rf1 {[%emt 0:01:11]} Nb5 {[%emt 0:01:23]} 21. Nhf5 {[%emt 0:07:21]} Kh7 {[%emt 0:03:54]} 22. Qf2 {[%emt 0:03:16]} Re6 {[%emt 0:03:49]} 23. Rad1 {[%emt 0:04:07]} Rf8 {[%emt 0:02:51]} 24. Qf3 {[%emt 0:02:42]} g6 {[%emt 0:01:41]} 25. Nh4 {[%emt 0:00:57]} Nd6 {[%emt 0:01:08]} 26. Rd5 {[%emt 0:01:49]} Qb6 {[%emt 0:06:46]} 27. Rd2 {[%emt 0:05:39]} Qxb3 {[%emt 0:00:52]} 28. Rdf2 {[%emt 0:02:05]} Qb6 {[%emt 0:01:23]} 29. Qe2 {[%emt 0:07:52]} Kg7 {[%emt 0:02:24]} 30. Qd3 {[%emt 0:02:20]} Qc6 {[%emt 0:01:14]} 31. Kh2 {[%emt 0:02:37]} Nfxe4 {[%emt 0:01:45]} 32. Nxe4 {[%emt 0:00:47]} Qxe4 {[%emt 0:00:32]} 33. Qd1 {[%emt 0:00:54]} Qxh4 {[%emt 0:00:22]} 0-1

[Event "XIII Mediterranean Championship 2023"]
[Site "Castell-Platja d Aro"]
[Date "2023.11.11"]
[Round "9.25"]
[White "Diaz Comas, Jordi"]
[Black "Moran Cabezas, Eric"]
[Result "1/2-1/2"]
[ECO "C28"]
[WhiteElo "1837"]
[BlackElo "1736"]
[Annotator "NA RC"]
[PlyCount "20"]
[EventDate "2023.10.26"]
[EventType "swiss"]
[EventCountry "ESP"]
[SourceTitle "playchess.com"]
[Source "ChessBase"]
[SourceQuality "1"]
[TimeControl "5400+30"]

1. e4 {[%emt 0:06:37]} e5 {[%emt 0:00:04]} 2. Bc4 {[%emt 0:00:18]} Nf6 {[%emt 0:00:10]} 3. d3 {[%emt 0:00:12]} Nc6 {[%emt 0:00:15]} 4. Nc3 {[%emt 0:02:35]} Bc5 {[%emt 0:01:48]} 5. a3 {[%emt 0:00:19]} O-O {[%emt 0:01:00]} 6. Bg5 {[%emt 0:05:08]} Be7 {[%emt 0:03:27]} 7. Nf3 {[%emt 0:13:47]} d6 {[%emt 0:02:22]} 8. h3 {[%emt 0:00:17]} a6 {[%emt 1:25:24]} 9. O-O {[%emt 0:01:06]} b5 {[%emt 0:00:00]} 10. Ba2 {[%emt 0:00:04]} Be6 {[%emt 0:00:00]} 1/2-1/2

[Event "XIII Mediterranean Championship 2023"]
[Site "Castell-Platja d Aro"]
[Date "2023.11.11"]
[Round "9.26"]
[White "Parramon Arimany, Marc"]
[Black "Hernando Rodrigo, Inmaculada"]
[Result "1-0"]
[ECO "A48"]
[WhiteElo "1834"]
[BlackElo "1734"]
[Annotator "NA RC"]
[PlyCount "123"]
[EventDate "2023.10.26"]
[EventType "swiss"]
[EventCountry "ESP"]
[SourceTitle "playchess.com"]
[Source "ChessBase"]
[SourceQuality "1"]
[TimeControl "5400+30"]

1. d4 {[%emt 1:31:00]} Nf6 {[%emt 1:31:00]} 2. Bf4 {[%emt 0:00:30]} d6 {[%emt 0:00:30]} 3. e3 {[%emt 0:00:30]} Nbd7 {[%emt 0:00:30]} 4. Nf3 {[%emt 0:00:30]} g6 {[%emt 0:00:30]} 5. Nbd2 {[%emt 0:00:30]} Bg7 {[%emt 0:00:30]} 6. h3 {[%emt 0:00:30]} O-O {[%emt 0:00:30]} 7. c3 {[%emt 0:00:30]} Re8 {[%emt 0:00:30]} 8. Bc4 {[%emt 0:00:30]} d5 {[%emt 0:00:30]} 9. Bb3 {[%emt 0:00:30]} c6 {[%emt 0:00:30]} 10. O-O {[%emt 0:00:30]} Nh5 {[%emt 0:00:30]} 11. Bh2 {[%emt 0:00:30]} Nhf6 {[%emt 0:00:30]} 12. Re1 {[%emt 0:00:30]} b6 {[%emt 0:00:30]} 13. e4 {[%emt 0:00:30]} dxe4 {[%emt 0:00:30]} 14. Nxe4 {[%emt 0:00:30]} Nxe4 {[%emt 0:00:30]} 15. Rxe4 {[%emt 0:00:30]} e6 {[%emt 0:00:30]} 16. Ne5 {[%emt 0:00:30]} Nxe5 {[%emt 0:00:30]} 17. dxe5 {[%emt 0:00:30]} Bb7 {[%emt 0:00:30]} 18. Rd4 {[%emt 0:00:30]} Qb8 {[%emt 0:00:30]} 19. Qe2 {[%emt 0:00:30]} c5 {[%emt 0:00:30]} 20. Rd2 {[%emt 0:00:30]} Qc7 {[%emt 0:00:30]} 21. Rad1 {[%emt 0:00:30]} Red8 {[%emt 0:00:30]} 22. f4 {[%emt 0:00:30]} Rxd2 {[%emt 0:00:30]} 23. Qxd2 {[%emt 0:00:30]} Qc6 {[%emt 0:00:30]} 24. Bc4 {[%emt 0:00:30]} Bf8 {[%emt 0:00:30]} 25. Bf1 {[%emt 0:00:30]} Be7 {[%emt 0:00:30]} 26. Qd7 {[%emt 0:00:30]} Rd8 {[%emt 0:00:30]} 27. Qxc6 {[%emt 0:00:30]} Bxc6 {[%emt 0:00:30]} 28. Rxd8+ {[%emt 0:00:30]} Bxd8 {[%emt 0:00:30]} 29. c4 {[%emt 0:00:30]} a6 {[%emt 0:00:30]} 30. Bg3 {[%emt 0:00:30]} Be4 {[%emt 0:00:30]} 31. Kf2 {[%emt 0:00:30]} f6 {[%emt 0:00:30]} 32. Ke3 {[%emt 0:00:30]} Bb1 {[%emt 0:00:30]} 33. a3 {[%emt 0:00:30]} fxe5 {[%emt 0:00:30]} 34. fxe5 {[%emt 0:00:30]} Kf7 {[%emt 0:00:30]} 35. h4 {[%emt 0:00:30]} g5 {[%emt 0:00:30]} 36. h5 {[%emt 0:00:30]} h6 {[%emt 0:00:30]} 37. Be2 {[%emt 0:00:30]} Bf5 {[%emt 0:00:30]} 38. Be1 {[%emt 0:00:30]} Ke8 {[%emt 0:00:30]} 39. g4 {[%emt 0:00:30]} Bh7 {[%emt 0:00:30]} 40. Bf3 {[%emt 0:00:30]} Kd7 {[%emt 0:00:30]} 41. Bd1 {[%emt 0:00:30]} Kc6 {[%emt 0:00:30]} 42. Bf3+ {[%emt 0:00:30]} Kc7 {[%emt 0:00:30]} 43. b4 {[%emt 0:00:30]} Be7 {[%emt 0:00:30]} 44. Bd1 {[%emt 0:00:30]} b5 {[%emt 0:00:30]} 45. Bb3 {[%emt 0:00:30]} Bg8 {[%emt 0:00:30]} 46. Kd3 {[%emt 0:00:30]} Kc6 {[%emt 0:00:30]} 47. bxc5 {[%emt 0:00:30]} Bxc5 {[%emt 0:00:30]} 48. Bb4 {[%emt 0:00:30]} Bh7+ {[%emt 0:00:30]} 49. Kc3 {[%emt 0:00:30]} Bg8 {[%emt 0:00:30]} 50. Bc2 {[%emt 0:00:30]} Bxb4+ {[%emt 0:00:30]} 51. Kxb4 {[%emt 0:00:30]} bxc4 {[%emt 0:00:30]} 52. Be4+ {[%emt 0:00:30]} Kb6 {[%emt 0:00:30]} 53. a4 {[%emt 0:00:30]} Bf7 {[%emt 0:00:30]} 54. a5+ {[%emt 0:00:30]} Kc7 {[%emt 0:00:30]} 55. Bg6 {[%emt 0:00:30]} Bg8 {[%emt 0:00:30]} 56. Kxc4 {[%emt 0:00:30]} Kc6 {[%emt 0:00:30]} 57. Be8+ {[%emt 0:00:30]} Kc7 {[%emt 0:00:30]} 58. Kc5 {[%emt 0:00:30]} Bh7 {[%emt 0:00:30]} 59. Bg6 {[%emt 0:00:30]} Bg8 {[%emt 0:00:30]} 60. Bd3 {[%emt 0:00:30]} Bf7 {[%emt 0:00:30]} 61. Bxa6 {[%emt 0:00:30]} Be8 {[%emt 0:00:30]} 62. Bb5 {[%emt 0:00:30]} 1-0

[Event "XIII Mediterranean Championship 2023"]
[Site "Castell-Platja d Aro"]
[Date "2023.11.11"]
[Round "9.27"]
[White "Zvereva, Marija"]
[Black "Vidal Palou, Jordi"]
[Result "1-0"]
[ECO "A03"]
[WhiteElo "2144"]
[BlackElo "1620"]
[Annotator "RC"]
[PlyCount "75"]
[EventDate "2023.10.26"]
[EventType "swiss"]
[EventCountry "ESP"]
[SourceTitle "playchess.com"]
[Source "ChessBase"]
[SourceQuality "1"]
[TimeControl "5400+30"]

1. g3 {[%emt 0:01:12]} d5 {[%emt 0:02:49]} 2. Bg2 {[%emt 0:00:07]} c6 {[%emt 0:00:14]} 3. f4 {[%emt 0:00:13]} Nf6 {[%emt 0:00:17]} 4. Nf3 {[%emt 0:00:08]} Bg4 {[%emt 0:00:14]} 5. d3 {[%emt 0:00:56]} Qc8 {[%emt 0:00:31]} 6. Nbd2 {[%emt 0:00:19]} Bh3 {[%emt 0:00:17]} 7. Bxh3 {[%emt 0:04:19]} Qxh3 {[%emt 0:00:13]} 8. e4 {[%emt 0:00:09]} dxe4 {[%emt 0:00:27]} 9. dxe4 {[%emt 0:00:04]} e6 {[%emt 0:00:21]} 10. Qe2 {[%emt 0:00:42]} Bc5 {[%emt 0:00:24]} 11. Nb3 {[%emt 0:00:53]} Bb6 {[%emt 0:00:17]} 12. Bd2 {[%emt 0:06:40]} O-O {[%emt 0:01:02]} 13. O-O-O {[%emt 0:00:34]} Na6 {[%emt 0:00:17]} 14. Kb1 {[%emt 0:04:28]} h6 {[%emt 0:00:13]} 15. Bc3 {[%emt 0:11:29]} Qg4 {[%emt 0:03:42]} 16. Bxf6 {[%emt 0:04:51]} gxf6 {[%emt 0:00:18]} 17. h3 {[%emt 0:00:20]} Qg7 {[%emt 0:00:40]} 18. g4 {[%emt 0:00:55]} Rfd8 {[%emt 0:00:11]} 19. Nbd4 {[%emt 0:09:35]} c5 {[%emt 0:02:53]} 20. Nb5 {[%emt 0:03:48]} Rxd1+ {[%emt 0:00:39]} 21. Rxd1 {[%emt 0:00:05]} Rd8 {[%emt 0:00:08]} 22. Rxd8+ {[%emt 0:04:39]} Bxd8 {[%emt 0:00:08]} 23. Nd6 {[%emt 0:02:32]} Be7 {[%emt 0:05:46]} 24. Nxb7 {[%emt 0:00:47]} Nb4 {[%emt 1:20:29]} 25. c3 {[%emt 0:10:00]} Nc6 {[%emt 0:00:00]} 26. Qb5 {[%emt 0:01:29]} Nd8 {[%emt 0:00:00]} 27. Nxc5 {[%emt 0:06:58]} Kh7 {[%emt 0:00:00]} 28. Nd3 {[%emt 0:01:37]} Qg8 {[%emt 0:00:00]} 29. a4 {[%emt 0:01:10]} Qf8 {[%emt 0:00:00]} 30. a5 {[%emt 0:01:24]} a6 {[%emt 0:03:00]} 31. Qxa6 {[%emt 0:00:31]} Qe8 {[%emt 0:00:00]} 32. Qc4 {[%emt 0:01:56]} Qd7 {[%emt 0:00:00]} 33. a6 {[%emt 0:01:13]} Nc6 {[%emt 0:00:00]} 34. Nd4 {[%emt 0:00:21]} Na7 {[%emt 0:00:00]} 35. f5 {[%emt 0:03:12]} e5 {[%emt 0:00:00]} 36. Qxf7+ {[%emt 0:04:04]} Kh8 {[%emt 0:00:00]} 37. Nc5 {[%emt 0:00:11]} Qd6 {[%emt 0:00:00]} 38. Nce6 {[%emt 0:00:45]} 1-0

[Event "XIII Mediterranean Championship 2023"]
[Site "Castell-Platja d Aro"]
[Date "2023.11.11"]
[Round "9.28"]
[White "Hernando Rodrigo, Lourdes"]
[Black "Vinas Racionero, Josep"]
[Result "0-1"]
[ECO "A57"]
[WhiteElo "1625"]
[BlackElo "2075"]
[Annotator "RC"]
[PlyCount "78"]
[EventDate "2023.10.26"]
[EventType "swiss"]
[EventCountry "ESP"]
[SourceTitle "playchess.com"]
[Source "ChessBase"]
[SourceQuality "1"]
[TimeControl "5400+30"]

1. d4 {[%emt 1:31:00]} c5 {[%emt 1:31:00]} 2. d5 {[%emt 0:00:30]} Nf6 {[%emt 0:00:30]} 3. c4 {[%emt 0:00:30]} b5 {[%emt 0:00:30]} 4. cxb5 {[%emt 0:00:30]} a6 {[%emt 0:00:30]} 5. Nc3 {[%emt 0:00:30]} axb5 {[%emt 0:00:30]} 6. e4 {[%emt 0:00:30]} b4 {[%emt 0:00:30]} 7. Nb5 {[%emt 0:00:30]} Nxe4 {[%emt 0:00:30]} 8. Qe2 {[%emt 0:00:30]} f5 {[%emt 0:00:30]} 9. f3 {[%emt 0:00:30]} Ba6 {[%emt 0:00:30]} 10. fxe4 {[%emt 0:00:30]} Qa5 {[%emt 0:00:30]} 11. Bd2 {[%emt 0:00:30]} fxe4 {[%emt 0:00:30]} 12. a4 {[%emt 0:00:30]} d6 {[%emt 0:00:30]} 13. Qxe4 {[%emt 0:00:30]} Qb6 {[%emt 0:00:30]} 14. Be2 {[%emt 0:00:30]} Nd7 {[%emt 0:00:30]} 15. Be3 {[%emt 0:00:30]} Nf6 {[%emt 0:00:30]} 16. Qd3 {[%emt 0:00:30]} g6 {[%emt 0:00:30]} 17. Nf3 {[%emt 0:00:30]} Bb7 {[%emt 0:00:30]} 18. Ng5 {[%emt 0:00:30]} Bxd5 {[%emt 0:00:30]} 19. Bf3 {[%emt 0:00:30]} Bc6 {[%emt 0:00:30]} 20. Ne6 {[%emt 0:00:30]} Kd7 {[%emt 0:00:30]} 21. Bxc6+ {[%emt 0:00:30]} Qxc6 {[%emt 0:00:30]} 22. O-O {[%emt 0:00:30]} Kxe6 {[%emt 0:00:30]} 23. Qc4+ {[%emt 0:00:30]} Kd7 {[%emt 0:00:30]} 24. b3 {[%emt 0:00:30]} Qd5 {[%emt 0:00:30]} 25. Qc2 {[%emt 0:00:30]} Qe4 {[%emt 0:00:30]} 26. Qc1 {[%emt 0:00:30]} Ng4 {[%emt 0:00:30]} 27. Bxc5 {[%emt 0:00:30]} dxc5 {[%emt 0:00:30]} 28. Rd1+ {[%emt 0:00:30]} Kc6 {[%emt 0:00:30]} 29. Ra2 {[%emt 0:00:30]} Bg7 {[%emt 0:00:30]} 30. Re1 {[%emt 0:00:30]} Bd4+ {[%emt 0:00:30]} 31. Kh1 {[%emt 0:00:30]} Be3 {[%emt 0:00:30]} 32. Qb2 {[%emt 0:00:30]} Rad8 {[%emt 0:00:30]} 33. Qe2 {[%emt 0:00:30]} Rhf8 {[%emt 0:00:30]} 34. Na7+ {[%emt 0:00:30]} Kc7 {[%emt 0:00:30]} 35. Qb5 {[%emt 0:00:30]} Nf2+ {[%emt 0:00:30]} 36. Rxf2 {[%emt 0:00:30]} Rxf2 {[%emt 0:00:30]} 37. Qa5+ {[%emt 0:00:30]} Kb7 {[%emt 0:00:30]} 38. Rg1 {[%emt 0:00:30]} Qxg2+ {[%emt 0:00:30]} 39. Rxg2 {[%emt 0:00:30]} Rf1+ {[%emt 0:00:30]} 0-1